Cogmind - Beta 15 @@@ ROGUE MODE // 2025.06.13 @ 15:26:14 // Winter2019/RPGLIKE Player: Jack Result: Self-destructed Performance ------------- Evolutions (3) 1500 Regions Visited (13) 2600 Robots Destroyed (62) 310 Value Destroyed (2091) 2091 Prototype IDs (238) 4760 Alien Tech Used (0) 0 Bonus (3800) 3800 TOTAL SCORE: 15061 Bonus ------- Pacifist 200 Aligned with FarCom 300 Met Data Miner 300 Used Data Conduit 3000 Cogmind --------- Core Integrity 125/600 Matter 137/300 Energy 40/150 System Corruption 4% Temperature Cool (0) Movement Hovering (52) Location -6/Proximity Caves Parts ------- > --- POWER (1) -------- Micro Nuclear Core > --- PROPULSION (3) --- Gravmag System Gravmag System Gravmag System > --- UTILITY (4) ------ Microactuators Microactuators Actuator Array Shield Generator > --- WEAPON (4) ------- Heavy Rocket Launcher Master Tearclaws > --- INVENTORY (2) ---- (None) Peak State ------------ > --- POWER ------------ Micro Nuclear Core > --- PROPULSION ------- Gravmag System Gravmag System Gravmag System > --- UTILITY ---------- Microactuators Microactuators Shield Generator Supersonic Drone Bay > --- WEAPON ----------- Heavy Rocket Launcher Longsword +1 Lance > --- INVENTORY -------- Actuator Array [Rating: 52] Favorites ----------- Power Light Ion Engine Engine Light Ion Engine Power Core Micro Nuclear Core Propulsion Gravmag System Hover Unit Gravmag System Flight Unit Flight Unit Utility Microactuators Device Microactuators Weapon Longsword +1 Ballistic Gun Assault Rifle Launcher Heavy Rocket Launcher Slashing Weapon Longsword +1 Piercing Weapon Lance Build | -11 -10 -9 -9 -9 -8 -8 -7 -7 -7 -7 -7 -7 -6 ------- Run | Yrd Mat Mat Min Exi Min Mat Fac Was Fac Low Low Dat Pro Slots Evolved 8 | 4 . . . . . . . . 3 . 1 . . Power . | . . . . . . . . . . . . . . Propulsion 2 | 1 . . . . . . . . . . 1 . . Utility 3 | . . . . . . . . . 3 . . . . Weapon 3 | 3 . . . . . . . . . . . . . Parts Attached 21 | 2 1 1 . 2 . . 2 1 9 . 3 . . Power 2 | . . . . . . . 1 . 1 . . . . Engine 1 | . . . . . . . 1 . . . . . . Core 1 | . . . . . . . . . 1 . . . . Reactor . | . . . . . . . . . . . . . . Propulsion 5 | . 1 . . . . . 1 . 2 . 1 . . Treads . | . . . . . . . . . . . . . . Leg . | . . . . . . . . . . . . . . Wheel . | . . . . . . . . . . . . . . Hover 3 | . . . . . . . . . 2 . 1 . . Flight 2 | . 1 . . . . . 1 . . . . . . Utility 6 | . . . . 1 . . . . 4 . 1 . . Device 6 | . . . . 1 . . . . 4 . 1 . . Storage . | . . . . . . . . . . . . . . Processor . | . . . . . . . . . . . . . . Hackware . | . . . . . . . . . . . . . . Protection . | . . . . . . . . . . . . . . Artifact . | . . . . . . . . . . . . . . Weapon 8 | 2 . 1 . 1 . . . 1 2 . 1 . . Energy Gun . | . . . . . . . . . . . . . . Energy Cannon . | . . . . . . . . . . . . . . Ballistic Gun 3 | 2 . 1 . . . . . . . . . . . Ballistic Cannon . | . . . . . . . . . . . . . . Launcher 1 | . . . . . . . . . 1 . . . . Special Weapon . | . . . . . . . . . . . . . . Impact Weapon . | . . . . . . . . . . . . . . Slashing Weapon 3 | . . . . 1 . . . . 1 . 1 . . Piercing Weapon 1 | . . . . . . . . 1 . . . . . Special Melee Weapon . | . . . . . . . . . . . . . . Unidentified Prototypes 1 | . . . . . . . 1 . . . . . . Parts Lost . | . . . . . . . . . . . . . . Power . | . . . . . . . . . . . . . . Propulsion . | . . . . . . . . . . . . . . Utility . | . . . . . . . . . . . . . . Weapon . | . . . . . . . . . . . . . . Highest Loss Streak . | . . . . . . . . . . . . . . To Critical Strikes . | . . . . . . . . . . . . . . Average Backups . | . . . . . . . . . . 1 . . . Power . | . . . . . . . . . . . . . . Propulsion . | . . . . . . . . . . . . . . Utility . | . . . . . . . . . . 1 . . . Weapon . | . . . . . . . . . . . . . . Tool/Special . | . . . . . . . . . . . . . . Unused Backups . | . . . . . . . . . . . . . . Power . | . . . . . . . . . . . . . . Propulsion . | . . . . . . . . . . . . . . Utility . | . . . . . . . . . . . . . . Weapon . | . . . . . . . . . . . . . . Tool/Special . | . . . . . . . . . . . . . . Average Slot Usage (%) 76 | . 31 48 50 44 37 37 41 62 78 90 88 83 83 Engine 4 | . . . . . . . . 12 8 . . . . Core 3 | . . . . . . . . . 1 9 8 8 8 Hover 9 | . . . . . . . . . 5 18 24 25 25 Flight 7 | . 6 12 12 12 12 12 16 25 11 . . . . Device 29 | . . . . 4 12 12 12 12 33 36 33 33 33 Ballistic Gun 2 | . 25 35 37 22 . . . . . . . . . Launcher 3 | . . . . . . . . . 1 9 8 8 8 Slashing Weapon 8 | . . . . 4 12 12 12 12 9 9 7 8 8 Piercing Weapon 6 | . . . . . . . . . 9 9 5 . . Peak Build Rating 52 | 2 3 4 4 20 17 17 23 29 48 48 52 47 47 Average Rating 37 | 1 2 3 4 10 17 17 19 23 38 48 46 47 47 On Entrance 21 | . 2 3 4 4 17 17 17 23 29 48 48 47 47 Naked Turns . | . . . . . . . . . . . . . . Heaviest Build 36 | 4 4 5 5 6 4 4 7 10 30 26 36 36 36 Greatest Support 37 | 8 9 9 9 9 9 9 14 14 28 28 37 37 37 Greatest Overweight (x) 1 | . . . . . . . . . 1 . . . . Average Overweight (x) . | . . . . . . . . . . . . . . Largest Inventory Capacity 2 | . . 1 1 1 1 1 1 1 1 1 2 2 2 Average Capacity 1 | . . . 1 1 1 1 1 1 1 1 1 2 2 Most Carried 2 | . . 1 1 1 1 1 1 1 1 1 2 . . Average Carried . | . . . 1 1 1 1 . 1 . 1 1 . . Final Capacity 2 | . . 1 1 1 1 1 1 1 1 1 2 2 2 Final Carried 1 | . . 1 1 1 1 1 1 1 1 1 . . . Class Distribution -------------------- 86% | Hacker-Gladiator 5% | Hacker-Mutant 4% | Gunner 3% | Mutant Dominant Class ---------------- Mutant | -10/Materials Gunner | -9/Materials Gunner | -9/Mines Gunner | -9/Exiles Mutant | -8/Mines Hacker-Mutant | -8/Materials Hacker-Mutant | -7/Factory Hacker-Mutant | -7/Waste Hacker-Gladiator | -7/Factory Hacker-Gladiator | -7/Lower Caves Hacker-Gladiator | -7/Lower Caves Hacker-Gladiator | -7/Data Miner Hacker-Gladiator | -6/Proximity Caves Resources | -11 -10 -9 -9 -9 -8 -8 -7 -7 -7 -7 -7 -7 -6 ----------- Run | Yrd Mat Mat Min Exi Min Mat Fac Was Fac Low Low Dat Pro Matter Collected 641 | 220 3 . . . 31 . 93 . 140 72 82 . . Remotely . | . . . . . . . . . . . . . . Salvage Created 1968 | . . . . . 31 16 265 . 1363 14 279 . . Parts 135 | . . 15 . . 3 8 7 . 69 7 26 . . Haulers Intercepted . | . . . . . . . . . . . . . . Recyclers Shooed . | . . . . . . . . . . . . . . Parts Field Recycled . | . . . . . . . . . . . . . . Retrieved Matter . | . . . . . . . . . . . . . . Parts Self-Destructed 26 | . . . . . . . . . . 5 21 . . Prevented . | . . . . . . . . . . . . . . Kills | -11 -10 -9 -9 -9 -8 -8 -7 -7 -7 -7 -7 -7 -6 ------- Run | Yrd Mat Mat Min Exi Min Mat Fac Was Fac Low Low Dat Pro Combat Hostiles Destroyed 48 | . . 6 . . . 4 . . 21 4 13 . . Melee 34 | . . . . . . 4 . . 21 1 8 . . Guns 6 | . . 6 . . . . . . . . . . . AOE 8 | . . . . . . . . . . 3 5 . . Classes Destroyed 12 | . . 3 . . 1 2 2 . 3 . 1 . . Worker 4 | . . . . . 2 . . . 2 . . . . Builder 2 | . . . . . . . 1 . 1 . . . . Recycler 5 | . . . . . . . 3 . 2 . . . . Operator 1 | . . . . . . 1 . . . . . . . Watcher 2 | . . . . . . . . . 2 . . . . Swarmer 13 | . . 3 . . . . . . 3 3 4 . . Grunt 20 | . . 1 . . . 2 . . 10 . 7 . . Brawler 2 | . . . . . . 1 . . . . 1 . . Duelist 2 | . . . . . . . . . 2 . . . . Sentry 6 | . . 2 . . . 1 . . 2 1 . . . Programmer 4 | . . . . . . . . . 4 . . . . Master Thief 1 | . . . . . . . . . . . 1 . . Best Kill Streak 4 | . . 4 . . 2 4 4 . 4 3 4 . . Combat Bots Only 4 | . . 4 . . . 4 . . 4 3 4 . . Max Kills in Single Turn 3 | . . 1 . . 1 1 1 . 1 1 3 . . Gunslinging . | . . . . . . . . . . . . . . Exploded 3 | . . . . . . . . . . 1 3 . . Melee 1 | . . . . . . 1 . . 1 1 1 . . Uniques/NPCs Destroyed . | . . . . . . . . . . . . . . Combat | -11 -10 -9 -9 -9 -8 -8 -7 -7 -7 -7 -7 -7 -6 -------- Run | Yrd Mat Mat Min Exi Min Mat Fac Was Fac Low Low Dat Pro Hostile Shots Fired 216 | . 6 29 . . . 11 . . 47 43 40 26 14 Missed 86 | . 2 15 . . . 6 . . 20 16 12 13 2 Hits 130 | . 4 14 . . . 5 . . 27 27 28 13 12 Melee 8 | . . . . . . . . . 3 . 5 . . Projectile 122 | . 4 14 . . . 5 . . 24 27 23 13 12 Critical Strikes 1 | . . . . . . . . . 1 . . . . Damage Taken 1772 | . 47 176 . . . 82 . . 347 158 367 453 142 Core 1441 | . 42 144 . . . 76 . . 289 124 291 364 111 Absorbed by Shields 367 | . . . . . . . . . 73 59 137 50 48 Redirected to Core 1079 | . 11 103 . . . 12 . . 185 88 257 334 89 Ignored by Resistances 253 | . . . . . . . . . 18 40 60 97 38 Core Remaining (%) 98 | 100 93 . . . 100 100 . . . . . . . Volleys Fired 28 | . . 13 . . . . . . . 4 11 . . Largest 3 | . . 3 . . . . . . . 1 1 . . Hottest 60 | . . 60 . . . . . . . 39 39 . . Shots Fired 54 | . . 39 . . . . . . . 4 11 . . Gun 39 | . . 39 . . . . . . . . . . . Cannon . | . . . . . . . . . . . . . . Launcher 15 | . . . . . . . . . . 4 11 . . Special . | . . . . . . . . . . . . . . Kinetic 39 | . . 39 . . . . . . . . . . . Thermal . | . . . . . . . . . . . . . . Explosive 15 | . . . . . . . . . . 4 11 . . Electromagnetic . | . . . . . . . . . . . . . . Robot Hit Streak 6 | . . 6 . . . . . . . 1 2 . . Robot Miss Streak 2 | . . 2 . . . . . . . 1 2 . . Penetration Max . | . . . . . . . . . . . . . . Secondary Targets 1 | . . 1 . . . . . . . . . . . Max Gunslinging Chain 1 | . . 1 . . . . . . . . . . . Shots Hit Robots 119 | . . 21 . . 2 11 5 . 44 10 24 1 1 Core Hits 67 | . . 9 . . . 4 1 . 28 4 20 1 . Critical Kills . | . . . . . . . . . . . . . . Critical Parts Destroyed . | . . . . . . . . . . . . . . Critical Strikes 9 | . . . . . . 3 . . 2 . 4 . . Sever 8 | . . . . . . 3 . . 1 . 4 . . Impale 1 | . . . . . . . . . 1 . . . . Melee Attacks 140 | . . . . . 2 15 5 1 64 15 30 3 5 Impact . | . . . . . . . . . . . . . . Slashing 105 | . . . . . 2 15 5 1 35 14 25 3 5 Piercing 35 | . . . . . . . . . 29 1 5 . . Sneak Attacks 14 | . . . . . 2 . 5 . 6 . . 1 . Combat Hostiles . | . . . . . . . . . . . . . . Follow-up Attacks 9 | . . . . . . . . . 6 . 3 . . Damage Inflicted 5915 | . 9 234 . . 199 527 345 . 2077 742 1763 10 9 Guns 234 | . . 234 . . . . . . . . . . . Cannons . | . . . . . . . . . . . . . . Explosions 1256 | . . . . . . . . . . 388 868 . . Melee 4412 | . . . . . 199 523 345 . 2077 354 895 10 9 Ramming 13 | . 9 . . . . 4 . . . . . . . Kinetic 234 | . . 234 . . . . . . . . . . . Thermal . | . . . . . . . . . . . . . . Explosive 1256 | . . . . . . . . . . 388 868 . . Electromagnetic . | . . . . . . . . . . . . . . Impact . | . . . . . . . . . . . . . . Slashing 3740 | . . . . . 199 523 345 . 1463 354 837 10 9 Piercing 672 | . . . . . . . . . 614 . 58 . . Highest Corruption 4 | . . . . . . . . . 4 4 4 4 4 Average Corruption 3 | . . . . . . . . . 2 4 4 4 4 Corruption Purged . | . . . . . . . . . . . . . . Corruption Blocked . | . . . . . . . . . . . . . . Effects 29 | . . . . . . . . . 7 5 13 2 2 Message Errors 7 | . . . . . . . . . 4 1 1 . 1 Matter Fused 9 | . . . . . . . . . . 2 6 . 1 Heat Flow Errors 2 | . . . . . . . . . 1 . 1 . . Energy Discharges 3 | . . . . . . . . . 1 . 1 1 . Data Loss (minor) 6 | . . . . . . . . . 1 1 3 1 . Data Loss (major) 1 | . . . . . . . . . . . 1 . . Alerts 1 | . . . . . . . . . . 1 . . . Overload Shots . | . . . . . . . . . . . . . . Overflow Damage 686 | . . . . . 119 45 168 . 299 12 43 . . Projectiles . | . . . . . . . . . . . . . . Explosions 44 | . . . . . . . . . . 3 41 . . Melee 642 | . . . . . 119 45 168 . 299 9 2 . . Knockbacks . | . . . . . . . . . . . . . . Impact . | . . . . . . . . . . . . . . Kinetic . | . . . . . . . . . . . . . . Secondary . | . . . . . . . . . . . . . . Self-Inflicted Damage 142 | . 4 . . . . 2 . . . 27 109 . . Shots 3 | . . . . . . . . . . 1 2 . . Rammed 5 | . 3 . . . . 2 . . . . . . . Targets Rammed 5 | . 3 . . . . 2 . . . . . . . Kicked . | . . . . . . . . . . . . . . Crushed . | . . . . . . . . . . . . . . Highest Temperature 150 | . . 5 . . . . . . 150 26 131 15 18 Average Temperature 38 | . . 2 . . . . . . 84 15 44 15 10 Received Heat Transfer 290 | . 24 39 . . . 27 . . 33 36 66 . 65 Siege Activations . | . . . . . . . . . . . . . . Martial Activations . | . . . . . . . . . . . . . . Shielding Activations . | . . . . . . . . . . . . . . Robots Disrupted . | . . . . . . . . . . . . . . Combat Hostiles . | . . . . . . . . . . . . . . Robots Corrupted . | . . . . . . . . . . . . . . Combat Hostiles . | . . . . . . . . . . . . . . Parts Fried . | . . . . . . . . . . . . . . Impact Corruptions . | . . . . . . . . . . . . . . Robots Melted . | . . . . . . . . . . . . . . Combat Hostiles . | . . . . . . . . . . . . . . Parts Melted . | . . . . . . . . . . . . . . Heat Transferred . | . . . . . . . . . . . . . . Parts Sabotaged . | . . . . . . . . . . . . . . Parts Stolen 3 | . . . . . . . . . . . 3 . . Parts Stripped . | . . . . . . . . . . . . . . Power Chain Reactions . | . . . . . . . . . . . . . . Alert | -11 -10 -9 -9 -9 -8 -8 -7 -7 -7 -7 -7 -7 -6 ------- Run | Yrd Mat Mat Min Exi Min Mat Fac Was Fac Low Low Dat Pro Maximum Alert Level 1 | . . . . . . . . . 1 . . . . Low Security (%) 99 | 100 100 100 100 . 100 100 100 100 99 . . . . Level 1 . | . . . . . . . . . . . . . . Level 2 . | . . . . . . . . . . . . . . Level 3 . | . . . . . . . . . . . . . . Level 4 . | . . . . . . . . . . . . . . Level 5 . | . . . . . . . . . . . . . . High Security . | . . . . . . . . . . . . . . Max Security . | . . . . . . . . . . . . . . Peak Influence 202 | . 30 158 61 . 10 90 25 8 202 . . . . Initial 61 | . . 12 61 . . . 25 7 . . . . . Average 35 | . 4 82 61 . 6 48 17 2 34 . . . . Influence Increases 1715 | . 30 216 . . 10 118 25 1 640 105 465 . 105 Destroy 0b10 Robot/C 940 | . . 120 . . . 80 . . 420 80 240 . . Destroy 0b10 Robot/NC 70 | . . . . . 10 5 20 . 35 . . . . Destroy Leader 204 | . . 30 . . . 20 . . 114 10 30 . . Successful Hack 55 | . . 6 . . . 10 5 . 34 . . . . Destroy Structure 11 | . . . . . . 3 . 1 7 . . . . Partial Spotted 15 | . . 15 . . . . . . . . . . . Lose Combat Pursuer 420 | . 30 45 . . . . . . 30 15 195 . 105 Influence Decreases 1630 | . . 88 97 61 10 60 63 21 438 307 350 115 20 Entered New Map 413 | . . 18 97 61 . . 33 13 . 76 . 115 . Time Decay 1217 | . . 70 . . 10 60 30 8 438 231 350 . 20 Squads Dispatched 14 | . 1 2 . . . 2 . . 8 . 1 . . Investigation 7 | . 1 1 . . . 1 . . 4 . . . . Extermination 4 | . . . . . . . . . 4 . . . . Reinforcement 2 | . . 1 . . . 1 . . . . . . . Assault 1 | . . . . . . . . . . . 1 . . Garrison . | . . . . . . . . . . . . . . Intercept . | . . . . . . . . . . . . . . Searches Triggered . | . . . . . . . . . . . . . . Construction Impeded . | . . . . . . . . . . . . . . Haulers Reinforced . | . . . . . . . . . . . . . . Active Scanning Responses . | . . . . . . . . . . . . . . Cargo Convoy Interrupts . | . . . . . . . . . . . . . . Stealth | -11 -10 -9 -9 -9 -8 -8 -7 -7 -7 -7 -7 -7 -6 --------- Run | Yrd Mat Mat Min Exi Min Mat Fac Was Fac Low Low Dat Pro Distress Signals 4 | . . 3 . . . . 1 . . . . . . Communications Jammed . | . . . . . . . . . . . . . . Distress Signals . | . . . . . . . . . . . . . . Times Spotted 112 | . 5 24 . . . 7 . 6 27 5 25 4 9 Peak Tracking Total 12 | . 4 12 . . . 4 . 6 5 3 7 4 7 Tactical Retreats 11 | . 1 2 . . . . . . 1 1 4 . 2 Traps | -11 -10 -9 -9 -9 -8 -8 -7 -7 -7 -7 -7 -7 -6 ------- Run | Yrd Mat Mat Min Exi Min Mat Fac Was Fac Low Low Dat Pro Traps Triggered 4 | . 1 . . . . . 1 . 2 . . . . Indirectly . | . . . . . . . . . . . . . . Trap Hack Attempts . | . . . . . . . . . . . . . . Triggered . | . . . . . . . . . . . . . . Disarmed . | . . . . . . . . . . . . . . Reprogrammed . | . . . . . . . . . . . . . . Reused . | . . . . . . . . . . . . . . Traps Extracted . | . . . . . . . . . . . . . . Installed . | . . . . . . . . . . . . . . Triggered . | . . . . . . . . . . . . . . Machines | -11 -10 -9 -9 -9 -8 -8 -7 -7 -7 -7 -7 -7 -6 ---------- Run | Yrd Mat Mat Min Exi Min Mat Fac Was Fac Low Low Dat Pro Machines Disabled . | . . . . . . . . . . . . . . Max in Single Turn . | . . . . . . . . . . . . . . Machines Repaired . | . . . . . . . . . . . . . . Machines Dismantled . | . . . . . . . . . . . . . . Machines Sabotaged . | . . . . . . . . . . . . . . Overloaded Fab Kills . | . . . . . . . . . . . . . . Hacking | -11 -10 -9 -9 -9 -8 -8 -7 -7 -7 -7 -7 -7 -6 --------- Run | Yrd Mat Mat Min Exi Min Mat Fac Was Fac Low Low Dat Pro Machines Accessed 16 | . . 1 . 1 . 2 1 . 7 . . 4 . Terminals 6 | . . 1 . . . 2 1 . 2 . . . . Fabricators 4 | . . . . . . . . . 4 . . . . Repair Stations . | . . . . . . . . . . . . . . Recycling Units . | . . . . . . . . . . . . . . Scanalyzers 1 | . . . . . . . . . 1 . . . . Garrison Access . | . . . . . . . . . . . . . . Total Hacks 56 | . . 3 . 1 . 5 1 . 16 . . 30 . Successful 49 | . . 1 . 1 . 2 1 . 14 . . 30 . Failed 7 | . . 2 . . . 3 . . 2 . . . . Catastrophic . | . . . . . . . . . . . . . . Database Lockouts . | . . . . . . . . . . . . . . Manual 14 | . . 3 . 1 . 5 1 . 4 . . . . Terminals 14 | . . 3 . . . 5 1 . 5 . . . . Fabricators 9 | . . . . . . . . . 9 . . . . Repair Stations . | . . . . . . . . . . . . . . Recycling Units . | . . . . . . . . . . . . . . Scanalyzers 2 | . . . . . . . . . 2 . . . . Garrison Access . | . . . . . . . . . . . . . . Terminal Hacks 39 | . . 1 . 1 . 2 1 . 4 . . 30 . Record 11 | . . . . . . . . . . . . 11 . Part Schematic 15 | . . 1 . . . 2 1 . 1 . . 10 . Robot Schematic 6 | . . . . . . . . . . . . 6 . Prototype ID Bank 3 | . . . . . . . . . . . . 3 . Branch Access Points 1 | . . . . . . . . . 1 . . . . Fabricator Index 1 | . . . . . . . . . 1 . . . . Scanalyzer Index 1 | . . . . . . . . . 1 . . . . Proto ID Catalog 1 | . . . . 1 . . . . . . . . . Fabricator Hacks 8 | . . . . . . . . . 8 . . . . Load Schematic 4 | . . . . . . . . . 4 . . . . Build 4 | . . . . . . . . . 4 . . . . Repair Station Hacks . | . . . . . . . . . . . . . . Recycling Unit Hacks . | . . . . . . . . . . . . . . Scanalyzer 2 | . . . . . . . . . 2 . . . . Insert Component 1 | . . . . . . . . . 1 . . . . Analyze 1 | . . . . . . . . . 1 . . . . Garrison Access Hacks . | . . . . . . . . . . . . . . Unauthorized Hacks . | . . . . . . . . . . . . . . Terminals . | . . . . . . . . . . . . . . Fabricators . | . . . . . . . . . . . . . . Repair Stations . | . . . . . . . . . . . . . . Recycling Units . | . . . . . . . . . . . . . . Scanalyzers . | . . . . . . . . . . . . . . Garrison Access . | . . . . . . . . . . . . . . Data Cores Recovered 1 | . . . . . . 1 . . . . . . . Used . | . . . . . . . . . . . . . . Hacking Detections 9 | . . 1 . . . 1 . . 7 . . . . Full Trace Events 6 | . . 1 . . . 1 . . 4 . . . . Feedback Events . | . . . . . . . . . . . . . . Feedback Blocked . | . . . . . . . . . . . . . . Robot Schematics Acquired 6 | . . . . . . . . . . . . 6 . Robots Built . | . . . . . . . . . . . . . . Authchips . | . . . . . . . . . . . . . . Time . | . . . . . . . . . . . . . . Total Robot Build Rating . | . . . . . . . . . . . . . . Part Schematics Acquired 16 | . . 1 . . . 2 1 . 2 . . 10 . Parts Built 7 | . . . . . . . . . 7 . . . . Authchips . | . . . . . . . . . . . . . . Time 139 | . . . . . . . . . 139 . . . . Total Part Build Rating 22 | . . . . . . . . . 22 . . . . Parts Repaired . | . . . . . . . . . . . . . . Time . | . . . . . . . . . . . . . . Parts Recycled . | . . . . . . . . . . . . . . Recycled Matter . | . . . . . . . . . . . . . . Retrieved Matter . | . . . . . . . . . . . . . . Retrieved Components . | . . . . . . . . . . . . . . Parts Scanalyzed 1 | . . . . . . . . . 1 . . . . Part Schematics Acquired 1 | . . . . . . . . . 1 . . . . Parts Damaged . | . . . . . . . . . . . . . . Bothacking | -11 -10 -9 -9 -9 -8 -8 -7 -7 -7 -7 -7 -7 -6 ------------ Run | Yrd Mat Mat Min Exi Min Mat Fac Was Fac Low Low Dat Pro Used RIF Installer . | . . . . . . . . . . . . . . Robots Hacked . | . . . . . . . . . . . . . . Non-combat . | . . . . . . . . . . . . . . Combat . | . . . . . . . . . . . . . . Robot Hacks Applied . | . . . . . . . . . . . . . . Relay Couplers Released . | . . . . . . . . . . . . . . Fabnet Peak Effective % . | . . . . . . . . . . . . . . Robots Rewired . | . . . . . . . . . . . . . . Allies Hacked . | . . . . . . . . . . . . . . Hacks Repelled . | . . . . . . . . . . . . . . Allies | -11 -10 -9 -9 -9 -8 -8 -7 -7 -7 -7 -7 -7 -6 -------- Run | Yrd Mat Mat Min Exi Min Mat Fac Was Fac Low Low Dat Pro Total Allies . | . . . . . . . . . . . . . . Largest Group . | . . . . . . . . . . . . . . Highest-Rated Group . | . . . . . . . . . . . . . . Highest-Rated Ally . | . . . . . . . . . . . . . . Total Orders 6 | . . . . . . . 1 . . 5 . . . EXPLORE 6 | . . . . . . . 1 . . 5 . . . Ally Attacks . | . . . . . . . . . . . . . . Total Damage . | . . . . . . . . . . . . . . Kills . | . . . . . . . . . . . . . . Allies Corrupted . | . . . . . . . . . . . . . . Allies Melted . | . . . . . . . . . . . . . . Intel | -11 -10 -9 -9 -9 -8 -8 -7 -7 -7 -7 -7 -7 -6 ------- Run | Yrd Mat Mat Min Exi Min Mat Fac Was Fac Low Low Dat Pro Active Infowar (turns) . | . . . . . . . . . . . . . . Robot Analysis Total 151 | . . . . . . . . . . . . 151 . Derelict Logs Recovered 3 | . . . 1 . . . . . . 1 1 . . Drone Launches 6 | . . . . . . . 1 . . 5 . . . Drone Recoveries 6 | . . . . . . . 1 . . 5 . . . Exploration | -11 -10 -9 -9 -9 -8 -8 -7 -7 -7 -7 -7 -7 -6 ------------- Run | Yrd Mat Mat Min Exi Min Mat Fac Was Fac Low Low Dat Pro Turns Passed 4519 | 33 53 150 16 90 23 140 72 51 2427 501 791 87 85 Spaces Moved 4322 | 59 116 227 39 214 48 239 110 128 1211 708 1015 133 75 Core 89 | 59 30 . . . . . . . . . . . . Treads . | . . . . . . . . . . . . . . Legs . | . . . . . . . . . . . . . . Wheels . | . . . . . . . . . . . . . . Hover 2342 | . . . . . . . . . 411 708 1015 133 75 Flight 1891 | . 86 227 39 214 48 239 110 128 800 . . . . Fastest Speed 34 | 50 40 40 40 40 40 40 34 34 34 56 52 52 52 Average Speed 46 | 50 42 40 40 40 40 40 36 34 42 56 52 52 52 Slowest Speed 116 | 50 50 40 40 40 40 40 40 34 116 56 56 52 52 Overloaded Moves . | . . . . . . . . . . . . . . Propulsion Burnouts . | . . . . . . . . . . . . . . Robots Hopped 14 | . 3 11 . . . . . . . . . . . Potential Cave-ins . | . . . . . . . . . . . . . . Cave-ins Triggered . | . . . . . . . . . . . . . . Exploration Rate (%) 41 | 4 31 29 10 60 8 28 15 76 28 99 97 78 11 Regions Visited 13 Branch Regions 7 Pre-discovered Areas 31 | . . . . . . . . . . 1 1 29 . Known Exits Taken 2 | . . . . . . 1 . . 1 . . . . Unknown Exits Taken 9 | 1 1 1 1 1 1 . . . . 1 1 1 . Scrap Searched 6 | . . . . . . . . . . 1 5 . . Spaces Dug 20 | . . . . . . 3 . 1 7 6 3 . . Terrain Destroyed 179 | . . . . . . 3 . 1 7 33 135 . . Melee 20 | . . . . . . 3 . 1 7 6 3 . . Projectile . | . . . . . . . . . . . . . . AOE 159 | . . . . . . . . . . 27 132 . . Terrain Rammed . | . . . . . . . . . . . . . . Walls Destroyed . | . . . . . . . . . . . . . . Machines Disabled . | . . . . . . . . . . . . . . Actions | -11 -10 -9 -9 -9 -8 -8 -7 -7 -7 -7 -7 -7 -6 --------- Run | Yrd Mat Mat Min Exi Min Mat Fac Was Fac Low Low Dat Pro Total 6677 | 60 116 247 38 218 49 268 136 133 3091 805 1256 145 115 Wait 2100 | . . 6 . . . 6 16 4 1780 72 171 10 35 Move 4288 | 58 110 208 38 213 47 239 110 127 1210 707 1014 132 75 Hop 10 | . 3 7 . . . . . . . . . . . Pick Up 10 | . . 1 . . . 1 1 . 4 . 3 . . Fast Attach 21 | 2 1 1 . 2 . . 2 1 10 . 2 . . Attach 1 | . . . . . . . . . 1 . . . . Detach 1 | . . . . . . . . . 1 . . . . Swap 2 | . . . . . . . . . 1 . 1 . . Drop 18 | . . . . 3 . 1 1 . 10 . 3 . . Fire 28 | . . 13 . . . . . . . 4 11 . . Melee 123 | . . . . . 2 15 5 1 53 14 25 3 5 Ram 3 | . 2 . . . . 1 . . . . . . . Kick . | . . . . . . . . . . . . . . Crush . | . . . . . . . . . . . . . . Escape Stasis . | . . . . . . . . . . . . . . Rewire . | . . . . . . . . . . . . . . Trap . | . . . . . . . . . . . . . . Miscellaneous 72 | . . 11 . . . 5 1 . 21 8 26 . . Route ------- -11/Scrapyard -10/Materials -9/Materials -9/Mines -9/Exiles -8/Mines -8/Materials (discovered 3 exits: *Fac x2 / *Sto) -7/Factory -7/Waste -7/Factory (discovered 4 exits: [*Fac x2] / *Low x2) -7/Lower Caves -7/Lower Caves (discovered 2 exits: [*Fac] / *Dat) -7/Data Miner -6/Proximity Caves History --------- Turn | Location | Event 1 | -11/Scrapyard | Upgraded with Propulsion slot (x1) 1 | -11/Scrapyard | Upgraded with Weapon slot (x3) 8 | -11/Scrapyard | Discovered new exit (range 15) 34 | -11/Scrapyard | Entered Materials 74 | -10/Materials | Discovered new exit (range 15) 87 | -10/Materials | Entered another Materials area 89 | -9/Materials | Reached level 2 233 | -9/Materials | Discovered new exit (range 7) 237 | -9/Materials | Entered Mines 244 | -9/Mines | Received a Rocket Launcher from a helpful Derelict 246 | -9/Mines | Learned 8 Materials zone layouts 250 | -9/Mines | Deemed a non-threat by the Exiles lab entrance 250 | -9/Mines | Discovered new exit (range 5) 253 | -9/Mines | Entered Exiles 255 | -9/Exiles | Reached level 3 264 | -9/Exiles | Met 8R-AWN 270 | -9/Exiles | Met EX-HEX 283 | -9/Exiles | Met EX-BIN 287 | -9/Exiles | Aligned with FarCom system 288 | -9/Exiles | Given EX-Vault access code 297 | -9/Exiles | Opened EX-Vault 300 | -9/Exiles | Found Supersonic Drone Bay 303 | -9/Exiles | Found Longsword +1 314 | -9/Exiles | Warned to stay clear of 0b10 Research branches 326 | -9/Exiles | Met EX-DEC 339 | -9/Exiles | Discovered new exit (range 14) 343 | -9/Exiles | Stole two prototypes: Supersonic Drone Bay, Longsword +1 343 | -9/Exiles | Entered Mines 353 | -8/Mines | Discovered new exit (range 8) 366 | -8/Mines | Entered Materials 367 | -8/Materials | Identified exit to Factory 367 | -8/Materials | Identified exit to Storage 368 | -8/Materials | Reached level 4 506 | -8/Materials | Entered Factory 508 | -7/Factory | FarCom data flow suspended 508 | -7/Factory | Reached level 5 578 | -7/Factory | Sucked down chute 578 | -7/Factory | Entered Waste 581 | -7/Waste | Spotted C-40 Crusher 582 | -7/Waste | Spotted C-40 Crusher 584 | -7/Waste | Spotted C-40 Crusher 590 | -7/Waste | Spotted C-40 Crusher 603 | -7/Waste | Spotted C-40 Crusher 617 | -7/Waste | Spotted C-40 Crusher 621 | -7/Waste | Discovered new exit (range 11) 629 | -7/Waste | Entered Factory 702 | -7/Factory | Reached level 6 759 | -7/Factory | Discovered new exit (range 14) 829 | -7/Factory | Fabricated Microactuators? 839 | -7/Factory | Upgraded with Utility slot (x2) 919 | -7/Factory | Build established: Hacker-Gladiator 1032 | -7/Factory | Fabricated Shield Generator? 1038 | -7/Factory | Upgraded with Utility slot (x1) 1373 | -7/Factory | Fabricated Hvy. Rocket Launcher? 2411 | -7/Factory | Reached level 7 2759 | -7/Factory | Identified exit to Lower Caves 2836 | -7/Factory | Discovered new exit (range 15) 2917 | -7/Factory | Fabricated Actuator Array? 3056 | -7/Factory | Entered Lower Caves 3058 | -7/Lower Caves | Reached level 8 3060 | -7/Lower Caves | Attracted the attention of an 0b10 checkpoint 3195 | -7/Lower Caves | Discovered new exit (range 85) 3245 | -7/Lower Caves | Learned location of Zion (-6) 3255 | -7/Lower Caves | Spotted B-75 Beast 3557 | -7/Lower Caves | Entered another Lower Caves area 3573 | -7/Lower Caves | Attracted the attention of an 0b10 outpost 3609 | -7/Lower Caves | Encountered a Warlord checkpoint 3618 | -7/Lower Caves | Upgraded with Propulsion slot (x1) 3717 | -7/Lower Caves | Reached level 9 3777 | -7/Lower Caves | Discovered new exit (range 3) 4104 | -7/Lower Caves | Spotted MY-BDG(f) 4104 | -7/Lower Caves | Spotted 98-0CG(f) 4104 | -7/Lower Caves | Discovered new exit (range 13) 4104 | -7/Lower Caves | Spotted 1I-OM0(f) 4104 | -7/Lower Caves | Spotted W3-LOO(f) 4105 | -7/Lower Caves | Encountered a Master Thief 4105 | -7/Lower Caves | Encountered a Master Thief 4105 | -7/Lower Caves | Encountered a Master Thief 4105 | -7/Lower Caves | Encountered a Master Thief 4106 | -7/Lower Caves | Destroyed 1I-OM0(f) 4106 | -7/Lower Caves | Supersonic Drone Bay stolen by Master Thief 4108 | -7/Lower Caves | Longsword +1 stolen by Master Thief 4110 | -7/Lower Caves | Lance stolen by Master Thief 4348 | -7/Lower Caves | Entered Data Miner 4348 | -7/Data Miner | Discovered new exit (range 6) 4350 | -7/Data Miner | Reached level 10 4358 | -7/Data Miner | Met Data Miner 4369 | -7/Data Miner | Learned location of Section 7 (-3) 4369 | -7/Data Miner | Acquired the access code to Warlord's prototype stash 4379 | -7/Data Miner | Received God Mode back door access code from Data Miner 4386 | -7/Data Miner | Reached level 11 4386 | -7/Data Miner | Interfaced with the Data Conduit 4431 | -7/Data Miner | Core integrity fell below 50% 4435 | -7/Data Miner | Entered Proximity Caves 4520 | -6/Proximity Caves | Self-destructed Last Messages --------------- use than Warlord, so if you see an opportunity, hack it and enter \\NA6K to gain control via the back door I've installed. Now off with you. System corrupted: Energy discharge (-45). Sneak attack on Data Miner. Data Miner disappears through a trap door. Interfacing with system... Reached level 11. Downloaded 151 analysis records. Downloaded 761 prototype IDs. Downloaded central machine database. Downloaded 28 destinations. Downloaded encryption format records. Connection remotely terminated. ORACLE Interface disabled. System corrupted: Component data lost. LOCATION=UNKNOWN GOAL=ESCAPE System corrupted: Matter fused (-9). X6IAM1OKT2TQUD5SBI1&Z8SPM3FF6=&REXLMCEQ Map ----- +----------------------------------------------------+ | ??????????????????????????????????????????? | | ??????????????????????????????????????????? | | ??????????????????????????????????????????? | | ??????????????????????????????????????????? | | ??????????????????????????????????????????? | | ??????????????????????????????????????????? | | ??????????????????????????????????????????? | | ??????????????????????????????????????????? | | ??????????????????????????????????????????? | | ??????????????????????????????????????????? | | ??????????????????????????????????????????? | | ??????????????????????????????????????????? | | ??????????????????????????????????????????? | | ?????????????????????????##?????????##????? | | ??????????????????????#### ??##??### ?????? | | ?????????????????????? ## ### ?????? | | ??????????????????????? ??????? | | ???????????????????????? ???????? | | ????????????????????????? ???????? | | ????????????????????????? ????????? | | ?????????????????????????? ?????????? | | ??????????????????########? ??????????? | | ?????????????????## ### ???????????? | | ????????????????## g ## #???????????? | | ????????????????# ## #???????????? | | ?????????????????#@g#???## #########???? | | ?????????????????# #????## #???? | | ?????????????????# #?????## #???? | | ?????????????????# #???############ #???? | | ?????????????????# #???# #????????# #???? | | ?????????????????# #??## #????????# ##??? | | ?????????????????# #### #?????#### #### | | ?????????????????# ##????# | | ?????????????????####### ###### | | ??????????????????????## # # ## ## | | ??????????????????????# # # #?# ###### | | ??????????????????????# ###?# #????## | | ??????????????????????# # ##???##???### | | ??????????????????????# ##????????## | | ??????????????????????# ##????????# | | ??????????????????????### ########### | | ???????????????????????# ### | | ???????????????????????## # # ### | | ????????????????????????#### # # ### | | ???????????????????????????# ### # ### | | ???????????????????????????####??# # ## | | ?????????????????????????????????# | | ?????????????????????????????????# | | ?????????????????????????????????# | | ?????????????????????????????????## ## # | +----------------------------------------------------+ Best States ------------- Heat Dissipation 25 Energy Generation 20 Energy Capacity 150 Matter Stores 300 Matter Capacity 300 Sight Range 16 Terrain Scan Density 10 Resistance: KI 10 Resistance: TH 15 Melee Speed Boost 40 Evasion (%) 63 Offensive Hacking 30 Item Schematics ----------------- Shield Generator | -9/Materials | Hacked Katana | -8/Materials | Hacked Actuator Array | -8/Materials | Hacked Microactuators | -7/Factory | Hacked Lance | -7/Factory | Scanalyzed Hvy. Rocket Launcher | -7/Factory | Hacked Combat Drone Bay | -7/Data Miner | Free Lgt. Regenerative Plating | -7/Data Miner | Free Cld. Aerolev Unit | -7/Data Miner | Free Gravity Neutralizer | -7/Data Miner | Free Imp. Heavy Machine Gun | -7/Data Miner | Free Thunder Leg | -7/Data Miner | Free Imp. Shock Absorption System | -7/Data Miner | Free Smartbomb Launcher | -7/Data Miner | Free Imp. Transmission Jammer | -7/Data Miner | Free Hvy. Disruptor Cannon | -7/Data Miner | Free Robot Schematics ------------------ M-14 Sweeper | -7/Data Miner | Free E-15 Imp | -7/Data Miner | Free M-22 Extractor | -7/Data Miner | Free R-10 Processor | -7/Data Miner | Free Y-54 Guardian | -7/Data Miner | Free B-60 Warrior | -7/Data Miner | Free Fabricated ------------ Microactuators | x2 | -7/Factory Shield Generator | x2 | -7/Factory Hvy. Rocket Launcher | x1 | -7/Factory Actuator Array | x2 | -7/Factory Repaired ---------- Nothing Alien Tech Used ----------------- None Achievements -------------- None Challenges ------------ None RPGLIKE | -11 -10 -9 -9 -9 -8 -8 -7 -7 -7 -7 -7 -7 -6 --------- Run | Yrd Mat Mat Min Exi Min Mat Fac Was Fac Low Low Dat Pro Levels Raised 10 | . . 1 . 1 . 1 1 . 2 1 1 2 . XP Earned 19175 | 3000 100 2280 500 350 500 2000 1500 200 2795 950 1850 2150 1000 XP Spent 13600 | 3000 . 1450 . . . 3000 . . 4550 . 1600 . . Upgrades 24 | 5 . 4 . . . 3 . . 9 . 3 . . Propulsion Slot 2 | 1 . . . . . . . . . . 1 . . Utility Slot 3 | . . . . . . . . . 3 . . . . Weapon Slot 3 | 3 . . . . . . . . . . . . . Energy Generation 1 | . . . . . . . . . . . 1 . . Mass Support 2 | 1 . . . . . . . . 1 . . . . Inventory Capacity 2 | . . 1 . . . . . . . . 1 . . Hack Attack % 6 | . . 3 . . . 3 . . . . . . . KI Resistance % 2 | . . . . . . . . . 2 . . . . TH Resistance % 3 | . . . . . . . . . 3 . . . . Protomatter Created 847 | . . 187 . . . 187 . . 182 60 231 . . Integrity Restored 1273 | . . 223 . . . 80 2 . 355 152 461 . . Core 966 | . . 186 . . . 76 . . 245 121 338 . . Parts 307 | . . 37 . . . 4 2 . 110 31 123 . . Protomatter Decayed 289 | . . 58 . . . 133 . . 24 5 69 . . Game ------ Seed ConstructSalvageDerivative Manual? 0 Play Time 00:37:44 Cumulative 291.2 hours Start 2025.06.13 @ 14:33:16 End 2025.06.13 @ 15:26:14 Sessions 3 Manual Loads 0 Difficulty Rogue Special Mode Winter2019/RPGLIKE Game No. 284 Rogue 95 Adventurer 177 Explorer 12 Win Type - Total 65 Types 19/1/16/2/12/0/4/5/0/6 Lore% 57 Gallery% 56 Achievement% 72 Wizard Run 0 Options --------- Layout 0 ASCII 0 Keyboard 0 Movement Numpad Keybinds 0 Fullscreen 2 Font 12/Smallcaps Map View 83x54 Zoom Use 0% Tactical HUD 0 Map Filters NONE Filters NONE Steam 1 RUN: b742eae2-51ad-4ae0-a66b-8b898292c6b6